Workbook

Sheet Zadání
A1: Zadávací list
A2: Oddlužení 2016
C3: Příjmy z pracovního poměru a důchody | G3: Příspěvek ke splátkám | H3: Běžné výživné placené IS | I3: DLUŽNÉ výživné placené IS | J3: počet vyživ. osob | L3: =INT(L5/3*2*100+1)/100 -> 6178.67 | M3: životní minimum=2/3 u částky L5
C4: čistá mzda | D4: důchod nebo jiný příjem | E4: příjem celkem | L4: =INT(L3/4*100+1)/100 -> 1544.67 | M4: Na vyživovanou osobu = 1/4 z L1
A5: Jméno navrhovatele | E5: =C5+D5 -> 0 | L5: =3410+5858 -> 9268 | M5: Součet životního minima 3.410,--Kč a nákladů na bydlení 5.858,--Kč (nařízení vlády 395/2015)
A6: Jméno manžela/ky/ | E6: =C6+D6 -> 0 | L6: =(INT(L5/3)) -> 3089 | M6: jedna třetina z L5 na poměření srážek
A7: společné označení | I7: 60
E9: odměna vč. DPH | G9: odměna | H9: pauš. náklady | I9: DPH
A10: Výše závazků navrh. | D10: Odměna IS vč. DPH | E10: =(G10+H10)*(I10+1) -> 1089 | G10: 750 | H10: 150 | I10: 0.21
A11: Výše závazků manžela(ky) | D11: zvýš. odměny IS za manžele či jiného důvodu | G11: =IF(J11="x",50%,(IF(J11="X",50,0))) -> 0 | H11: =G11 -> 0 | I11: manželé
A12: Výše spol. závazků | B12: =SUM(B10:B11) -> 0 | C12: BEZ DUPLICIT!!!!!!! | D12: Odměna IS za manžele | E12: =(G12+H12)*(I12+1) -> 1089 | G12: =G10*(100%+G11) -> 750 | H12: 150 | I12: 0.21
B15: NÁVOD: Vyplňte údaje v zelených polích, pokud pro ně existují podklady, či mají pro výpočet být vyplněny. Do společných závazků vkládat společnou částku bez duplicit.
B16: Nově vloženo zaškrtávací pole pro manžele- automatické zvýšení o 50%. Ve výpočtech je pro tento případ zadáváno u každého z manželů 50% ze zvýšené částky. Do tabulky "Přímé zadání splátky" je přidán pomocník pro zjednodušení výpočtu splátky - automaticky je nastaven na 30%. Pokud potřebujete jinou procentní sazbu změnte ji přepsáním. Současně se Vám pod minimální splátkou objeví, jak vysoký by měl být případný příspěvek.

Sheet Výpočet u navrhovatele
A1: Výpočet oddlužení
A3: Dlužník:
A4: =Zadání!B5 -> 0
E5: Návod:
A6: Přihlášené pohledávky celkem | B6: =Zadání!B10 -> 0 | E6: Proveď kontrolu zadaných (oranžových) polí.
A8: Čistý příjem | B8: =Zadání!E5 -> 0
A10: domácnost + dlužník | B10: =Zadání!L3 -> 6178.67
A11: děti či jiné osoby počet | B11: =Zadání!J5 -> 0
A12: děti či jiné osoby částka | B12: =Zadání!L4 -> 1544.67 | F12: =Zadání!L5 -> 9268
A13: děti či jiné osoby celkem | B13: =B12*B11 -> 0
A14: Celkem nezabavitelná část | B14: =IF(INT(B13+B10)-(B13+B10)=0,(B13+B10),INT(B13+B10)+1) -> 6179
A16: Zbývající část čisté mzdy | B16: =B8-B14 -> -6179
A17: Neomezeně srazitelná část | B17: =IF(B$16<=F$12,0,B$16-F$12) -> 0
A18: Zabavitelné třetiny | B18: =IF(B$16<=F$12,INT(B16/3),Zadání!L6) -> -2060
A19: Součet srazitelných částek | B19: =B17+B18*2 -> -4120
A20: Mzda | B20: =IF(B19<0,B8,B8-B19) -> 0
A22: Zabavitelná část | B22: =IF(B19<0,0,B19) -> 0
A23: Příspěvek na spl. od 3 osoby | B23: =Zadání!G5 -> 0
A24: Výživné hrazené IS | B24: =Zadání!H5+(Zadání!I5/Zadání!I7) -> 0
A25: Odměna a náklady správce | B25: =IF(Zadání!J11="x",Zadání!E12/2,(IF(Zadání!J11="X",Zadání!E12/2,Zadání!E12))) -> 1089
A26: Měsíční částka připadající na splátky | B26: =IF((B22-B25-B24+B23)<0.0001,0,B22-B25-B24+B23) -> 0
A28: Dlužník uhradí za 5 let | B28: =B26*60 -> 0
A31: =IF(B28>(B6/100*30),"Oddlužení je možné.","Nelze oddlužit.") -> Nelze oddlužit.
A33: Předpokládaná výše uspokojení v % | B33: =IF(B28>0,B28/(B6),0) -> 0
A34: Doba splácení v měsících, pokud uspokojení přesahuje 100% | B34: =IF(B33>=100%,INT(B6/B26)+1,"Více než 60 měsíců") -> Více než 60 měsíců

Sheet 2. z manželů
A1: Výpočet oddlužení
A3: Dlužník:
A4: =Zadání!B6 -> 0
E5: Návod:
A6: Přihlášené pohledávky celkem | B6: =Zadání!B11 -> 0 | E6: ='Výpočet u navrhovatele'!E6:E8 -> Proveď kontrolu zadaných (oranžových) polí.
A8: Čistý příjem | B8: =Zadání!E6 -> 0
A10: domácnost + dlužník | B10: =Zadání!L3 -> 6178.67
A11: děti či jiné osoby počet | B11: =Zadání!J6 -> 0
A12: děti či jiné osoby částka | B12: =Zadání!L4 -> 1544.67 | F12: =Zadání!L5 -> 9268
A13: děti či jiné osoby celkem | B13: =B12*B11 -> 0
A14: Celkem nezabavitelná část | B14: =IF(INT(B13+B10)-(B13+B10)=0,(B13+B10),INT(B13+B10)+1) -> 6179
A16: Zbývající část čisté mzdy | B16: =B8-B14 -> -6179
A17: Neomezeně srazitelná část | B17: =IF(B$16<=F$12,0,B$16-F$12) -> 0
A18: Zabavitelné třetiny | B18: =IF(B$16<=F$12,INT(B16/3),Zadání!L6) -> -2060
A19: Součet srazitelných částek | B19: =B17+B18*2 -> -4120
A20: Mzda | B20: =IF(B19<0,B8,B8-B19) -> 0
A22: Zabavitelná část | B22: =IF(B19<0,0,B19) -> 0
A23: Příspěvek na spl. od 3 osoby | B23: =Zadání!G6 -> 0
A24: Výživné hrazené IS | B24: =Zadání!H6 -> 0
A25: Odměna a náklady správce | B25: =IF(Zadání!J11="x",Zadání!E12/2,(IF(Zadání!J11="X",Zadání!E12/2,0))) -> 0
A26: Měsíční částka připadající na splátky | B26: =IF((B22-B25-B24+B23)<0.0001,0,B22-B25-B24+B23) -> 0
A28: Dlužník uhradí za 5 let | B28: =B26*60 -> 0
A31: =IF(B28>(B6/100*30),"Oddlužení je možné.","Nelze oddlužit.") -> Nelze oddlužit.
A33: Předpokládaná výše uspokojení v % | B33: =IF(B28>0,B28/(B6),0) -> 0
A34: Doba splácení v měsících, pokud uspokojení přesahuje 100% | B34: =IF(B33>=100%,INT(B6/B26)+1,"Více než 60 měsíců") -> Více než 60 měsíců

Sheet Společné oddlužení manželů
A1: Výpočet oddlužení
A3: Dlužník:
A4: =Zadání!B7 -> 0
E5: Návod:
A6: Přihlášené pohledávky celkem | B6: =Zadání!B12 -> 0 | E6: Tabulka automaticky načítá kladné hodnoty z předchozích tabulek. Měnit lze pouze odměnu IS, pokud by mu náležela v jiné výši, než je uvedeno na listu zadání.
A8: Čistý příjem obou manželů | B8: =IF('Výpočet u navrhovatele'!B8<0,0,'Výpočet u navrhovatele'!B8)+IF('2. z manželů'!B8<0,0,'2. z manželů'!B8) -> 0
A10: Mzda (součet zbytku mezd) | B10: =IF('Výpočet u navrhovatele'!B20=0,'Výpočet u navrhovatele'!B8,'Výpočet u navrhovatele'!B20)+IF('2. z manželů'!B20=0,'2. z manželů'!B8,'2. z manželů'!B20) -> 0
A12: Zabavitelná část u obou manželů | B12: ='Výpočet u navrhovatele'!B22+'2. z manželů'!B22 -> 0
A13: Příspěvek na splátky od 3 osoby | B13: ='Výpočet u navrhovatele'!B23+'2. z manželů'!B23 -> 0
A14: Výživné hrazené IS | B14: ='Výpočet u navrhovatele'!B24+'2. z manželů'!B24 -> 0
A15: Odměna a náklady správce | B15: ='Výpočet u navrhovatele'!B25+'2. z manželů'!B25 -> 1089
A16: Měsíční částka připadající na splátky | B16: =IF((B12+B13-B15-B14)<0.0001,0,B12+B13-B15-B14) -> 0
A18: Dlužník uhradí za 5 let | B18: =B16*60 -> 0
A21: =IF(B18>(B6/100*30),"Oddlužení je možné.","Nelze oddlužit.") -> Nelze oddlužit.
A23: Předpokládaná výše uspokojení v % | B23: =IF(B18>0,B18/(B6),0) -> 0
A24: Doba splácení v měsících, pokud uspokojení přesahuje 100% | B24: =IF(B23>=100%,INT(B6/B16)+1,"Více než 60 měsíců") -> Více než 60 měsíců

Sheet Přímé zadání splátky
A1: Výpočet oddlužení
A3: Dlužník:
A4: =IF(Zadání!B7=0,Zadání!B5,Zadání!B7) -> 0
E5: Návod:
A6: Přihlášené pohledávky celkem | B6: ='Společné oddlužení manželů'!B6 -> 0 | E6: Tabulka slouží k výpočtu snížených splátek, nebo výpočtu minimální splátky, aby byla splněna zákonná hranice 30%. Vyplň do řádku plánovaná splátka čásku, jíž by měl dlužník platit
A8: Část příjmu, jež dlužníkům zůstane | B8: ='Společné oddlužení manželů'!B8-B10 -> -10000
A10: Zabavitelná část/Plánovaná splátka | B10: 10000
A11: Výživné hrazené IS | B11: ='Společné oddlužení manželů'!B14 -> 0
A12: Odměna a náklady správce | B12: =IF(Zadání!E12>Zadání!E10,Zadání!E12,Zadání!E10) -> 1089
A13: Měsíční částka připadající na splátky | B13: =B10-B12-B11 -> 8911
A15: Dlužník uhradí za 5 let | B15: =B13*60 -> 534660 | E15: Pomocník:
E17: Kolik procent má dlužník splnit? | F17: 0.3
A18: =IF(B15>(B6/100*30),"Oddlužení je možné.","Nelze oddlužit.") -> Oddlužení je možné. | E18: Výše splátky | F18: =B6*F17/60+B12+B11+0.001 -> 1089.001
E19: Manželům je možno srazit | F19: ='Výpočet u navrhovatele'!B22+'2. z manželů'!B22 -> 0
A20: Předpokládaná výše uspokojení v % | B20: =IF(B15>0,B15/(B6),0) ->  | E20: Bude potřeba příspěvek? Kolik? | F20: =IF(('Výpočet u navrhovatele'!B22+'2. z manželů'!B22-'Přímé zadání splátky'!F18)>0,0,'Přímé zadání splátky'!F18-'Výpočet u navrhovatele'!B22-'2. z manželů'!B22) -> 1089.001
A21: Doba splácení v měsících, pokud uspokojení přesahuje 100% | B21: =IF(B20>=100%,INT(B6/B13)+1,"Více než 60 měsíců") -> 

Sheet Výpočet průměrného příjmu
A1: Výpočet průměrného příjmu dlužníka za posledních 6 měsíců
D3: počet měsíců | E3: 6
B9: =SUM(B3:B8) -> 0 | C9: celkem
B12: =B9/E3 -> 0 | C12: Průměrný příjem
C14: Mimořádné odměny
B17: =(B9-B14)/E3 -> 0 | C17: průměrný příjem bez odměn

Sheet Cestovné
A2: Vyúčtování nákladů IS za období od zjištění úpadku do přezkumu | K2: Cestovné - MAZDA CX 9 RZ 5P6 6346 | N2: =K2 -> Cestovné - MAZDA CX 9 RZ 5P6 6346
K3: 1. jízda km | L3: 48 | N3: 1. jízda km | O3: 156
K4: počet jízd | L4: 1 | N4: počet jízd | O4: 1
A5: Cestovné | C5: =L13 -> 331 | K5: cena benz. | L5: 29.7 | N5: cena benz. | O5: 29.7
A6: cestovné k soudu a zpět | C6: =O13 -> 1076
A7: Součet | C7: =SUM(C5:C6) -> 1407 | K7: základ | L7: 3.8 | N7: základ | O7: 3.8
A8: DPH 21% | C8: =C7*Zadání!I12 -> 295.47 | K8: základ celkem | L8: =L7*L3*L4 -> 182.4 | N8: základ celkem | O8: =O7*O3*O4 -> 592.8
A9: Náklady celkem | C9: =C7+C8 -> 1702.47 | K9: ® na 100 km | L9: =(13.3+8.9+9.2)/3 -> 10.46666667 | N9: ® na 100 km | O9: =(13.3+8.9+9.2)/3 -> 10.46666667
A10: Po zaokrouhlení | C10: =INT(C9) -> 1702 | K10: benzín na km | L10: =INT(L9*L5)/100 -> 3.1 | N10: benzín na km | O10: =INT(O9*O5)/100 -> 3.1
K11: za benzín celkem | L11: =L10*L3*L4 -> 148.8 | N11: za benzín celkem | O11: =O10*O3*O4 -> 483.6
K12: jedna cesta | L12: =INT((L7+L10)*L3) -> 331 | N12: jedna cesta | O12: =INT((O7+O10)*O3) -> 1076
K13: celkem cesty | L13: =L12*L4 -> 331 | N13: celkem cesty | O13: =O12*O4 -> 1076
K15: kontrolní součet | L15: =L8+L11-L13 -> 0.2
K19: Výše sazby základní náhrady za používání osobních motorových vozidel se od 1. ledna 2016 vyhláškou č. 385/2015 Sb , a činí 3,80 Kč.
K21: Průměrné ceny pohonných hmot jsou následující:
K22: a) 29,70 Kč u benzinu automobilového 95 oktanů,
K23: b) 33,00 Kč u benzinu automobilového 98 oktanů,
K24: c) 29,50 Kč u motorové nafty.
